Cogmind - Beta 13 --- EXPLORER MODE // 2024.04.16 @ 12:26:06 Player: Iddmeister Result: Self-destructed Performance ------------- Evolutions (1) 500 Regions Visited (2) 400 Robots Destroyed (15) 75 Value Destroyed (416) 416 Prototype IDs (0) 0 Alien Tech Used (0) 0 Bonus (0) 0 TOTAL SCORE: 1391 Bonus ------- None Cogmind --------- Core Integrity 153/400 Matter 300/300 Energy 100/100 System Corruption 0% Temperature Cool (0) Movement Core (700) Ox13 Location -9/Materials Parts ------- > --- POWER (2) -------- (None) > --- PROPULSION (2) --- (None) > --- UTILITY (4) ------ High-capacity Storage Unit Signal Interpreter > --- WEAPON (2) ------- (None) > --- INVENTORY (20) --- Maul Peak State ------------ > --- POWER ------------ Ion Engine Improved Ion Engine > --- PROPULSION ------- Light Treads Improved Treads > --- UTILITY ---------- Heat Sink High-capacity Storage Unit Signal Interpreter ECM Suite > --- WEAPON ----------- Medium Laser Maul > --- INVENTORY -------- Light Treads Hover Unit Sensor Array [Rating: 13] Favorites ----------- Power Ion Engine Engine Ion Engine Propulsion Light Treads Treads Light Treads Hover Unit Hover Unit Flight Unit Flight Unit Utility Signal Interpreter Device ECM Suite Storage High-capacity Storage Unit Processor Signal Interpreter Weapon Medium Laser Energy Gun Medium Laser Impact Weapon Maul Build | -11 -10 -9 ------- Run | Yrd Mat Mat Slots Evolved 3 | . 1 2 Power 1 | . . 1 Propulsion . | . . . Utility 2 | . 1 1 Weapon . | . . . Parts Attached 25 | 7 4 14 Power 4 | 1 . 3 Engine 4 | 1 . 3 Core . | . . . Reactor . | . . . Propulsion 11 | 2 1 8 Treads 8 | 2 1 5 Leg . | . . . Wheel . | . . . Hover 1 | . . 1 Flight 2 | . . 2 Utility 7 | 3 2 2 Device 3 | . 1 2 Storage 2 | 1 1 . Processor 2 | 2 . . Hackware . | . . . Protection . | . . . Artifact . | . . . Weapon 3 | 1 1 1 Energy Gun 2 | 1 . 1 Energy Cannon . | . . . Ballistic Gun . | . . . Ballistic Cannon . | . . . Launcher . | . . . Special Weapon . | . . . Impact Weapon 1 | . 1 . Slashing Weapon . | . . . Piercing Weapon . | . . . Special Melee Weapon . | . . . Unidentified Prototypes . | . . . Parts Lost 8 | . . 8 Power 2 | . . 2 Propulsion 2 | . . 2 Utility 2 | . . 2 Weapon 2 | . . 2 Highest Loss Streak 5 | . . 5 To Critical Strikes . | . . . Average Slot Usage (%) 93 | . 94 91 Engine 14 | . 12 17 Treads 22 | . 24 19 Device 9 | . 3 15 Storage 10 | . 11 10 Processor 15 | . 20 10 Energy Gun 13 | . 12 14 Impact Weapon 5 | . 7 3 Naked Turns . | . . . Heaviest Build 60 | 10 52 60 Greatest Support 43 | 40 40 43 Greatest Overweight (x) 13 | 3 1 13 Average Overweight (x) . | . . 1 Largest Inventory Capacity 20 | 10 20 20 Average Capacity 18 | 6 19 20 Most Carried 7 | 5 2 7 Average Carried 1 | . . 2 Final Capacity 20 | 5 20 20 Final Carried 1 | . 1 1 Class Distribution -------------------- 100% | Hacker-Mutant Dominant Class ---------------- Hacker-Mutant | -10/Materials Hacker-Mutant | -9/Materials Resources | -11 -10 -9 ----------- Run | Yrd Mat Mat Matter Collected 438 | 192 108 138 Remotely . | . . . Salvage Created 486 | . 196 290 Parts 20 | . 6 14 Haulers Intercepted . | . . . Recyclers Shooed . | . . . Parts Field Recycled . | . . . Retrieved Matter . | . . . Parts Self-Destructed . | . . . Prevented . | . . . Kills | -11 -10 -9 ------- Run | Yrd Mat Mat Combat Hostiles Destroyed 11 | . 4 7 Guns 9 | . 4 5 Classes Destroyed 4 | . 2 2 Watcher 4 | . 1 3 Swarmer 3 | . . 3 Grunt 7 | . 4 3 Sentry 1 | . . 1 Best Kill Streak 3 | . 2 3 Combat Bots Only 3 | . 2 3 Max Kills in Single Turn 1 | . 1 1 Gunslinging . | . . . Exploded . | . . . Melee . | . . . Uniques/NPCs Destroyed . | . . . Combat | -11 -10 -9 -------- Run | Yrd Mat Mat Hostile Shots Fired 223 | . 30 193 Missed 71 | . 4 67 Damage Taken 1246 | . 244 1002 Core 286 | . 39 247 Absorbed by Shields . | . . . Ignored by Resistances 776 | . 147 629 Regen/Repaired (Parts) 62 | . 62 . Core Remaining (%) 92 | 100 84 . Volleys Fired 60 | . 21 39 Largest 2 | . 1 2 Hottest 90 | . 50 90 Shots Fired 62 | . 21 41 Gun 62 | . 21 41 Cannon . | . . . Launcher . | . . . Special . | . . . Kinetic . | . . . Thermal 62 | . 21 41 Explosive . | . . . Electromagnetic . | . . . Robot Hit Streak 35 | . 13 35 Robot Miss Streak 1 | . 1 1 Penetration Max . | . . . Secondary Targets . | . . . Shots Hit Robots 60 | . 21 39 Core Hits 22 | . 9 13 Critical Kills . | . . . Critical Parts Destroyed . | . . . Critical Strikes 8 | . 3 5 Burn 7 | . 3 4 Smash 1 | . . 1 Melee Attacks 4 | . 1 3 Impact 4 | . 1 3 Slashing . | . . . Piercing . | . . . Sneak Attacks 1 | . 1 . Combat Hostiles . | . . . Follow-up Attacks . | . . . Damage Inflicted 890 | . 359 531 Guns 695 | . 249 446 Cannons . | . . . Explosions . | . . . Melee 195 | . 110 85 Ramming . | . . . Kinetic . | . . . Thermal 695 | . 249 446 Explosive . | . . . Electromagnetic . | . . . Impact 195 | . 110 85 Slashing . | . . . Piercing . | . . . Highest Corruption . | . . . Average Corruption . | . . . Corruption Purged . | . . . Corruption Blocked . | . . . Overload Shots . | . . . Overflow Damage 101 | . 80 21 Projectiles . | . . . Explosions . | . . . Melee 101 | . 80 21 Knockbacks . | . . . Impact . | . . . Kinetic . | . . . Secondary . | . . . Self-Inflicted Damage . | . . . Shots . | . . . Rammed . | . . . Targets Rammed . | . . . Kicked . | . . . Crushed . | . . . Highest Temperature 172 | . 172 82 Average Temperature 45 | . 76 25 Received Heat Transfer 762 | . 219 543 Siege Activations . | . . . Robots Corrupted . | . . . Combat Hostiles . | . . . Parts Fried 2 | . 2 . Impact Corruptions 3 | . 2 1 Robots Melted 1 | . . 1 Combat Hostiles 1 | . . 1 Parts Melted 3 | . 3 . Heat Transferred 2554 | . 962 1592 Parts Sabotaged . | . . . Parts Stolen . | . . . Parts Stripped . | . . . Power Chain Reactions . | . . . Alert | -11 -10 -9 ------- Run | Yrd Mat Mat Peak Influence 220 | . 118 220 Initial . | . . . Average 49 | . 45 62 Maximum Alert Level 1 | . . 1 Low Security (%) 94 | 100 100 86 Level 1 5 | . . 13 Level 2 . | . . . Level 3 . | . . . Level 4 . | . . . Level 5 . | . . . High Security . | . . . Max Security . | . . . Squads Dispatched 1 | . . 1 Investigation . | . . . Extermination . | . . . Reinforcement 1 | . . 1 Assault . | . . . Garrison . | . . . Intercept . | . . . Searches Triggered . | . . . Construction Impeded . | . . . Haulers Reinforced . | . . . Active Scanning Responses . | . . . Cargo Convoy Interrupts . | . . . Stealth | -11 -10 -9 --------- Run | Yrd Mat Mat Distress Signals 2 | . . 2 Communications Jammed . | . . . Distress Signals . | . . . Times Spotted 26 | . 7 19 Peak Tracking Total 4 | . 4 4 Tactical Retreats 4 | . 1 3 Traps | -11 -10 -9 ------- Run | Yrd Mat Mat Traps Triggered 1 | . 1 . Indirectly . | . . . Trap Hack Attempts . | . . . Triggered . | . . . Disarmed . | . . . Reprogrammed . | . . . Reused . | . . . Traps Extracted . | . . . Installed . | . . . Triggered . | . . . Machines | -11 -10 -9 ---------- Run | Yrd Mat Mat Machines Disabled . | . . . Max in Single Turn . | . . . Machines Repaired . | . . . Machines Dismantled . | . . . Machines Sabotaged . | . . . Overloaded Fab Kills . | . . . Hacking | -11 -10 -9 --------- Run | Yrd Mat Mat Machines Accessed 3 | . 2 1 Terminals 2 | . 1 1 Fabricators . | . . . Repair Stations 1 | . 1 . Recycling Units . | . . . Scanalyzers . | . . . Garrison Access . | . . . Total Hacks 7 | . 4 3 Successful 5 | . 3 2 Failed 2 | . 1 1 Catastrophic . | . . . Database Lockouts . | . . . Manual 2 | . 1 1 Terminals 5 | . 2 3 Fabricators . | . . . Repair Stations 2 | . 2 . Recycling Units . | . . . Scanalyzers . | . . . Garrison Access . | . . . Terminal Hacks 3 | . 1 2 Dispatch Records 1 | . . 1 Reinforcement Status 1 | . . 1 Zone Layout 1 | . 1 . Fabricator Hacks . | . . . Repair Station Hacks 2 | . 2 . Scan Component 1 | . 1 . Repair 1 | . 1 . Recycling Unit Hacks . | . . . Scanalyzer . | . . . Garrison Access Hacks . | . . . Unauthorized Hacks . | . . . Terminals . | . . . Fabricators . | . . . Repair Stations . | . . . Recycling Units . | . . . Scanalyzers . | . . . Garrison Access . | . . . Data Cores Recovered . | . . . Used . | . . . Hacking Detections 2 | . 1 1 Full Trace Events . | . . . Feedback Events . | . . . Feedback Blocked . | . . . Robot Schematics Acquired . | . . . Robots Built . | . . . Authchips . | . . . Time . | . . . Total Robot Build Rating . | . . . Part Schematics Acquired . | . . . Parts Built . | . . . Authchips . | . . . Time . | . . . Total Part Build Rating . | . . . Parts Repaired 1 | . 1 . Time 13 | . 13 . Parts Recycled . | . . . Recycled Matter . | . . . Retrieved Matter . | . . . Retrieved Components . | . . . Parts Scanalyzed . | . . . Part Schematics Acquired . | . . . Parts Damaged . | . . . Bothacking | -11 -10 -9 ------------ Run | Yrd Mat Mat Used RIF Installer . | . . . Robots Hacked . | . . . Non-combat . | . . . Combat . | . . . Robot Hacks Applied . | . . . Relay Couplers Released . | . . . Fabnet Peak Effective % . | . . . Robots Rewired . | . . . Allies Hacked . | . . . Hacks Repelled . | . . . Allies | -11 -10 -9 -------- Run | Yrd Mat Mat Total Allies . | . . . Largest Group . | . . . Highest-Rated Group . | . . . Highest-Rated Ally . | . . . Total Orders . | . . . Ally Attacks . | . . . Total Damage . | . . . Kills . | . . . Allies Corrupted . | . . . Allies Melted . | . . . Intel | -11 -10 -9 ------- Run | Yrd Mat Mat Robot Analysis Total . | . . . Derelict Logs Recovered . | . . . Drone Launches . | . . . Drone Recoveries . | . . . Exploration | -11 -10 -9 ------------- Run | Yrd Mat Mat Turns Passed 1685 | 117 839 729 Spaces Moved 612 | 58 328 226 Core 16 | 13 . 3 Treads 596 | 45 328 223 Legs . | . . . Wheels . | . . . Hover . | . . . Flight . | . . . Fastest Speed 50 | 50 160 240 Average Speed 233 | 166 235 246 Slowest Speed 700 | 200 240 700 Overloaded Moves . | . . . Propulsion Burnouts . | . . . Robots Hopped . | . . . Cave-ins Triggered . | . . . Exploration Rate (%) 25 | 5 48 22 Regions Visited 2 Branch Regions . Pre-discovered Areas . | . . . Known Exits Taken 2 | 1 1 . Unknown Exits Taken . | . . . Scrap Searched . | . . . Spaces Dug . | . . . Terrain Destroyed . | . . . Melee . | . . . Projectile . | . . . AOE . | . . . Terrain Rammed . | . . . Walls Destroyed . | . . . Machines Disabled . | . . . Actions | -11 -10 -9 --------- Run | Yrd Mat Mat Total 800 | 80 371 349 Wait 68 | 4 13 51 Move 610 | 57 327 226 Hop . | . . . Pick Up 23 | 9 5 9 Fast Attach . | . . . Attach 12 | 7 3 2 Detach . | . . . Swap 13 | . 1 12 Drop 10 | 3 . 7 Fire 60 | . 21 39 Melee 4 | . 1 3 Ram . | . . . Kick . | . . . Crush . | . . . Escape Stasis . | . . . Rewire . | . . . Trap . | . . . Miscellaneous . | . . . Route ------- -11/Scrapyard -10/Materials (discovered 2 exits: *Mat x2) -9/Materials History --------- Turn | Location | Event 19 | -11/Scrapyard | Identified exit to Materials 19 | -11/Scrapyard | Discovered exit to Materials (range 15) 118 | -11/Scrapyard | Entered Materials 118 | -10/Materials | Evolved 1 slot: Utility x1 301 | -10/Materials | Build established: Hacker-Mutant 568 | -10/Materials | Identified exit to Materials 568 | -10/Materials | Discovered exit to Materials (range 10) 707 | -10/Materials | Discovered exit to Materials (range 16) 910 | -10/Materials | Repaired Lgt. Treads 957 | -10/Materials | Entered another Materials area 957 | -9/Materials | Evolved 2 slots: Power x1, Utility x1 1650 | -9/Materials | Lost 3 parts (1p1u1w) 1670 | -9/Materials | Core integrity fell below 50% 1686 | -9/Materials | Self-destructed Last Messages --------------- K-01 Serf collects debris. W-16 Scout distress signal alerts nearby ally. W-16 Scout destroyed. K-01 Serf collects debris. Y-45 Defender suffers critical hit (Burn). Acquired 18 matter. Y-45 Defender suffers critical hit (Burn). Sensor Array destroyed. Critical hit (Burn: +37). Med. Laser destroyed. Imp. Ion Engine destroyed. K-01 Serf destroyed. Lgt. Treads destroyed. Sml. Laser destroyed. Critical hit (Burn: +37). Imp. Treads destroyed. Lgt. Ion Engine destroyed. Y-45 Defender suffers critical hit (Burn). ECM Suite destroyed. Critical hit (Burn: +37). Map ----- +----------------------------------------------------+ | ??????????# # """ #? | | ??????????# + #? | | ??????????# * # """ !#? | | ??????????# ^ ^ =% ######+##### !# """ #? | | ??????????# """ """ #?# # # """ ! #? | | ??????????# """ """ #?# # # #? | | ??????????# """ """ ### # ##########? | | ??????????# ==! + # #?????????? | | ??????????# =*= #### # #?????????? | | ??????????# ###### #??# # * #?????????? | | ??????????# ?????# #??# #=% #?????????? | | ??????????# ??????# #??# # #?????????? | | ??????????# ??????# #??# ! # #?????????? | | ????????? ???????# #??########## #??######## | | ????????##+###???????# #???????????# #??# "T" # | | ?????????????????????# ############# #??# # | | ?????????????????????# # # #??# """# | | ?????????????????????# # + #??# """# | | ?????????????????????# # # #??# """# | | ?????????????????????# # # #??# # | | ?????????????????????# # # #######+### | | ?????????????????????# # # | | ?????????????????????# # # | | ?????????????????????# ##Y########## | | ????################## # [ #?## ####### | | ??? % % % @# * #??# #?????? | | ??? % = # #??#! !#?????? | | ??? %+ #??##!!!!##?????? | | ??? =% #% !#???######??????? | | ??? # #???????????????? | | ???? # ######???????????????? | | ???? ###????????????????????? | | ?????######################??????????????????????? | | ?????????????????????????????????????????????????? | | ?????????????????????????????????????????????????? | | | | | | | | | | | | | | | | | | | | | | | | | | | | | | | +----------------------------------------------------+ Best States ------------- Heat Dissipation 38 Energy Generation 17 Energy Capacity 415 Matter Stores 300 Matter Capacity 300 Sight Range 16 Robot Scan Range 14 Terrain Scan Density 10 ECM Strength 1 Resistance: KI 35 Resistance: TH 35 Resistance: EX 35 Resistance: EM 35 Resistance: I 35 Resistance: S 35 Resistance: P 35 Evasion (%) 40 Targeting Accuracy 5 Recoil Reduction 2 Offensive Hacking 20 Item Schematics ----------------- None Robot Schematics ------------------ None Fabricated ------------ Nothing Alien Tech Used ----------------- None Achievements -------------- None Challenges ------------ None Game ------ Seed PhasingPortableCore Manual? 0 Play Time 00:16:55 Cumulative 7.3 hours Start 2024.04.16 @ 11:10:08 End 2024.04.16 @ 12:26:06 Sessions 1 Manual Loads 0 Difficulty Explorer Special Mode None Game No. 15 Rogue 6 Adventurer 0 Explorer 9 Win Type - Total 0 Types 0/0/0/0/0/0/0/0/0 Lore% 9 Gallery% 16 Achievement% 13 Wizard Run 0 Options --------- Layout 1 ASCII 0 Keyboard 0 Movement Mouse Keybinds 0 Fullscreen 1 Font 24/Smallcaps Map View 50x35 Zoom Use 0% Tactical HUD 0 Map Filters NONE Filters NONE Steam 1 RUN: b13dcb34-db82-4d8d-b1f6-399c51b49a44